[Event "V Open LLucmajor"]
[Site "LLucmajor"]
[Date "2016.05.15"]
[Round "8"]
[White "Rasmussen, Allan Stig"]
[Black "Manik, Mikulas"]
[Result "1-0"]
[ECO "E94"]
[WhiteElo "2495"]
[BlackElo "2428"]
[PlyCount "126"]
[EventDate "2016.??.??"]
[EventCountry "ESP"]
[TimeControl "5400+30"]
[WhiteClock "0:01:40"]
[BlackClock "0:10:31"]

1. d4 {[%emt 0:00:00]} Nf6 {[%emt 0:00:00]} 2. c4 {[%emt 0:00:00]} g6 {[%emt 0:
00:00]} 3. Nc3 {[%emt 0:00:00]} Bg7 {[%emt 0:00:00]} 4. e4 {[%emt 0:00:00]} d6
{[%emt 0:00:00]} 5. Nf3 {[%emt 0:00:00]} O-O {[%emt 0:00:00]} 6. Be2 {[%emt 0:
00:00]} e5 {[%emt 0:00:00]} 7. O-O {[%emt 0:00:03]} exd4 {[%emt 0:00:02]} 8.
Nxd4 {[%emt 0:00:05]} Re8 {[%emt 0:00:04]} 9. f3 {[%emt 0:00:11]} c6 {[%emt 0:
00:01]} 10. Kh1 {[%emt 0:00:13]} Nbd7 {[%emt 0:00:28]} 11. Bf4 {[%emt 0:00:45]}
Nh5 {[%emt 0:00:48]} 12. Bxd6 {[%emt 0:00:29]} Qf6 {[%emt 0:00:03]} 13. Nb3 {
[%emt 0:00:34]} Nf4 {[%emt 0:01:02]} 14. c5 {[%emt 0:01:48]} b6 {[%emt 0:05:53]
} 15. Rf2 {[%emt 0:21:24]} bxc5 {[%emt 0:01:06]} 16. Bf1 {[%emt 0:03:16]} Ne5 {
[%emt 0:05:24]} 17. Bxc5 {[%emt 0:06:37]} Rd8 {[%emt 0:12:29]} 18. Rd2 {
[%emt 0:08:35]} Be6 {[%emt 0:01:51]} 19. Be3 {[%emt 0:02:53]} Rxd2 {[%emt 0:10:
22]} 20. Qxd2 {[%emt 0:00:35]} Rd8 {[%emt 0:00:27]} 21. Qc2 {[%emt 0:01:32]}
Nc4 {[%emt 0:01:38]} 22. Bxa7 {[%emt 0:18:23]} g5 {[%emt 0:05:01]} 23. Bxc4 {
[%emt 0:02:06]} Bxc4 {[%emt 0:00:08]} 24. Rd1 {[%emt 0:00:53]} Nd3 {[%emt 0:03:
22]} 25. Nc1 {[%emt 0:05:38]} Ra8 {[%emt 0:06:12]} 26. Nxd3 {[%emt 0:01:38]}
Rxa7 {[%emt 0:00:08]} 27. Na4 {[%emt 0:08:05]} Bb5 {[%emt 0:02:36]} 28. b3 {
[%emt 0:00:36]} h5 {[%emt 0:03:43]} 29. Nac5 {[%emt 0:01:00]} Ra3 {[%emt 0:00:
11]} 30. e5 {[%emt 0:05:03]} Qe7 {[%emt 0:04:49]} 31. Re1 {[%emt 0:02:25]} Qa7
{[%emt 0:06:27]} 32. Nc1 {[%emt 0:00:24]} Qa5 {[%emt 0:05:43]} 33. Re4 {
[%emt 0:02:16]} Qa7 {[%emt 0:07:28]} 34. e6 {[%emt 0:00:02]} Qe7 {[%emt 0:00:
08]} 35. exf7+ {[%emt 0:00:27]} Qxf7 {[%emt 0:00:05]} 36. Ne6 {[%emt 0:02:03]}
Bf6 {[%emt 0:00:24]} 37. Qc5 {[%emt 0:00:31]} Ra8 {[%emt 0:00:18]} 38. a4 {
[%emt 0:01:09]} Ba6 {[%emt 0:00:15]} 39. Qe3 {[%emt 0:01:54]} Qg6 {[%emt 0:00:
58]} 40. Nd3 {[%emt 0:00:18]} Rb8 {[%emt 0:02:50]} 41. Ndc5 {[%emt 0:00:07]}
Bc8 {[%emt 0:00:12]} 42. h3 {[%emt 0:02:20]} Qf5 {[%emt 0:00:19]} 43. Qd3 {
[%emt 0:01:33]} Qd5 {[%emt 0:02:10]} 44. Qc2 {[%emt 0:01:18]} Bxe6 {[%emt 0:02:
17]} 45. Rxe6 {[%emt 0:00:12]} Bg7 {[%emt 0:00:20]} 46. Re4 {[%emt 0:01:30]}
Kh8 {[%emt 0:03:34]} 47. b4 {[%emt 0:00:19]} Bf6 {[%emt 0:01:16]} 48. a5 {
[%emt 0:00:43]} Ra8 {[%emt 0:00:23]} 49. Re6 {[%emt 0:00:22]} Qd4 {[%emt 0:00:
10]} 50. Qe2 {[%emt 0:00:52]} Qxb4 {[%emt 0:00:43]} 51. Re8+ {[%emt 0:00:41]}
Rxe8 {[%emt 0:01:29]} 52. Qxe8+ {[%emt 0:00:01]} Kg7 {[%emt 0:00:11]} 53. Ne6+
{[%emt 0:00:45]} Kh6 {[%emt 0:00:09]} 54. Qf8+ {[%emt 0:01:21]} Qxf8 {[%emt 0:
00:05]} 55. Nxf8 {[%emt 0:00:01]} Bd4 {[%emt 0:01:16]} 56. Ne6 {[%emt 0:00:40]}
Ba7 {[%emt 0:00:06]} 57. Nd8 {[%emt 0:00:46]} c5 {[%emt 0:00:05]} 58. Kg1 {
[%emt 0:00:19]} c4+ {[%emt 0:00:22]} 59. Kf1 {[%emt 0:00:01]} Kg6 {[%emt 0:00:
47]} 60. Nc6 {[%emt 0:00:05]} c3 {[%emt 0:01:47]} 61. Ke2 {[%emt 0:00:06]} Bc5
{[%emt 0:00:18]} 62. g4 {[%emt 0:01:10]} hxg4 {[%emt 0:00:06]} 63. hxg4 {
[%emt 0:00:47]} Kh6 1-0

[Event "V Open LLucmajor"]
[Site "LLucmajor"]
[Date "2016.05.15"]
[Round "8"]
[White "Winants, Luc"]
[Black "Souleidis, Georgios"]
[Result "1-0"]
[ECO "B31"]
[WhiteElo "2562"]
[BlackElo "2425"]
[PlyCount "91"]
[EventDate "2016.??.??"]
[EventCountry "ESP"]
[TimeControl "5400+30"]
[WhiteClock "0:06:53"]
[BlackClock "0:08:03"]

1. e4 {[%emt 0:05:26]} c5 {[%emt 0:00:55]} 2. Nf3 {[%emt 0:00:07]} Nc6 {
[%emt 0:00:23]} 3. Bb5 {[%emt 0:00:15]} g6 {[%emt 0:00:25]} 4. O-O {[%emt 0:00:
46]} Bg7 {[%emt 0:00:02]} 5. Re1 {[%emt 0:02:25]} Nf6 {[%emt 0:00:07]} 6. Nc3 {
[%emt 0:02:36]} O-O {[%emt 0:02:57]} 7. e5 {[%emt 0:01:40]} Ng4 {[%emt 0:11:10]
} 8. Bxc6 {[%emt 0:00:30]} dxc6 {[%emt 0:00:02]} 9. d3 {[%emt 0:01:41]} Nh6 {
[%emt 0:06:48]} 10. h3 {[%emt 0:05:33]} b6 {[%emt 0:04:03]} 11. Bf4 {[%emt 0:
07:00]} Nf5 {[%emt 0:01:57]} 12. Ne4 {[%emt 0:16:12]} Nd4 {[%emt 0:00:11]} 13.
Nxd4 {[%emt 0:03:16]} cxd4 {[%emt 0:02:34]} 14. Qd2 {[%emt 0:01:01]} Qd5 {
[%emt 0:03:31]} 15. Ng3 {[%emt 0:00:19]} c5 {[%emt 0:03:38]} 16. b3 {[%emt 0:
00:42]} Bb7 {[%emt 0:01:08]} 17. f3 {[%emt 0:00:08]} Rac8 {[%emt 0:05:49]} 18.
Re2 {[%emt 0:00:48]} b5 {[%emt 0:09:48]} 19. Rae1 {[%emt 0:02:12]} c4 {[%emt 0:
01:59]} 20. Bh6 {[%emt 0:00:54]} cxd3 {[%emt 0:04:35]} 21. cxd3 {[%emt 0:00:29]
} Rc2 {[%emt 0:09:22]} 22. Qf4 {[%emt 0:04:46]} Bxh6 {[%emt 0:06:18]} 23. Qxh6
{[%emt 0:00:07]} Rfc8 {[%emt 0:00:05]} 24. h4 {[%emt 0:05:54]} Rxe2 {[%emt 0:
07:09]} 25. Rxe2 {[%emt 0:00:06]} Qc5 {[%emt 0:00:04]} 26. Kf2 {[%emt 0:01:47]}
Qc3 {[%emt 0:01:50]} 27. Qg5 {[%emt 0:03:07]} Qxd3 {[%emt 0:04:26]} 28. Qxe7 {
[%emt 0:00:15]} Rc2 {[%emt 0:00:35]} 29. Rxc2 {[%emt 0:16:37]} Qxc2+ {[%emt 0:
00:01]} 30. Kg1 {[%emt 0:00:12]} d3 {[%emt 0:00:03]} 31. e6 {[%emt 0:07:20]}
fxe6 {[%emt 0:00:02]} 32. Qxe6+ {[%emt 0:00:09]} Kf8 {[%emt 0:03:17]} 33. Qd6+
{[%emt 0:00:52]} Kf7 {[%emt 0:01:17]} 34. Qd7+ {[%emt 0:02:52]} Kg8 {[%emt 0:
00:23]} 35. Qe8+ {[%emt 0:00:14]} Kg7 {[%emt 0:00:02]} 36. Qe7+ {[%emt 0:00:07]
} Kg8 {[%emt 0:00:26]} 37. Nf1 {[%emt 0:00:54]} Bc6 {[%emt 0:01:16]} 38. Ne3 {
[%emt 0:02:47]} Qc1+ {[%emt 0:01:04]} 39. Kh2 {[%emt 0:00:10]} Qe1 {[%emt 0:03:
07]} 40. Qe6+ {[%emt 0:00:56]} Kf8 {[%emt 0:00:38]} 41. Qf6+ {[%emt 0:00:05]}
Kg8 {[%emt 0:00:06]} 42. Ng4 {[%emt 0:01:38]} h5 {[%emt 0:00:31]} 43. Qxg6+ {
[%emt 0:00:11]} Kf8 {[%emt 0:00:13]} 44. Qf6+ {[%emt 0:00:07]} Kg8 {[%emt 0:00:
08]} 45. Nh6+ {[%emt 0:00:24]} Kh7 {[%emt 0:00:02]} 46. Nf5 1-0

[Event "V Open LLucmajor"]
[Site "LLucmajor"]
[Date "2016.05.14"]
[Round "7"]
[White "Demuth, Adrien"]
[Black "Brull Mayol, Cosme"]
[Result "1-0"]
[ECO "E10"]
[WhiteElo "2541"]
[BlackElo "2217"]
[PlyCount "57"]
[EventDate "2016.??.??"]
[EventCountry "ESP"]
[TimeControl "5400+30"]

1. c4 e6 2. d4 Nf6 3. Nf3 d5 4. e3 c5 5. cxd5 exd5 6. Bb5+ Bd7 7. Bxd7+ Nbxd7
8. dxc5 Nxc5 9. O-O Be7 10. b3 O-O 11. Bb2 Rc8 12. Nc3 Nce4 13. Ne2 Qa5 14. a3
Rfd8 15. Nfd4 Qa6 16. f3 Nd6 17. Nf4 Bf8 18. Qd3 Qb6 19. Rf2 a6 20. g4 Nb5 21.
Nxb5 Qxb5 22. Rd1 d4 23. Qxb5 axb5 24. Rfd2 Re8 25. e4 Nd7 26. Bxd4 Nc5 27. b4
Nb3 28. Rd3 Bd6 29. Be3 1-0

[Event "V Open LLucmajor"]
[Site "LLucmajor"]
[Date "2016.05.14"]
[Round "7"]
[White "Galego, Luis"]
[Black "Rakhmanov, Aleksandr"]
[Result "1/2-1/2"]
[ECO "A46"]
[WhiteElo "2448"]
[BlackElo "2654"]
[PlyCount "78"]
[EventDate "2016.??.??"]
[EventCountry "ESP"]
[TimeControl "5400+30"]
[WhiteClock "0:05:17"]
[BlackClock "0:00:38"]

1. d4 {[%emt 0:01:25]} Nf6 {[%emt 0:00:00]} 2. Nf3 c5 {[%emt 0:02:13]} 3. e3 {
[%emt 0:02:51]} g6 {[%emt 0:00:58]} 4. Be2 {[%emt 0:05:42]} Bg7 {[%emt 0:06:39]
} 5. O-O {[%emt 0:03:32]} b6 {[%emt 0:07:10]} 6. c4 {[%emt 0:01:11]} O-O {
[%emt 0:01:27]} 7. Nc3 cxd4 8. exd4 {[%emt 0:08:21]} d5 {[%emt 0:00:59]} 9. Ne5
{[%emt 0:02:20]} Bb7 {[%emt 0:05:40]} 10. Bf3 a6 11. Re1 {[%emt 0:33:39]} Ra7 {
[%emt 0:02:16]} 12. cxd5 {[%emt 0:01:31]} Nxd5 {[%emt 0:00:51]} 13. Qb3 {
[%emt 0:03:37]} Nxc3 14. bxc3 {[%emt 0:00:40]} Bxf3 {[%emt 0:11:34]} 15. Nxf3 {
[%emt 0:02:21]} Nc6 16. a4 Na5 {[%emt 0:05:35]} 17. Qb4 {[%emt 0:00:58]} Rb7 {
[%emt 0:09:55]} 18. Bg5 f6 {[%emt 0:00:50]} 19. Bd2 {[%emt 0:08:49]} Qd5 {
[%emt 0:05:47]} 20. Re2 {[%emt 0:04:05]} Rc8 21. Rae1 {[%emt 0:06:17]} Bf8 {
[%emt 0:03:04]} 22. h4 Nc4 {[%emt 0:09:37]} 23. Qb3 {[%emt 0:02:24]} Rc6 {
[%emt 0:06:06]} 24. Bf4 {[%emt 0:02:09]} Rd7 {[%emt 0:03:18]} 25. Rb1 Kg7 {
[%emt 0:01:55]} 26. Nd2 {[%emt 0:04:36]} Na5 {[%emt 0:01:43]} 27. Qxd5 {
[%emt 0:00:33]} Rxd5 {[%emt 0:00:06]} 28. Be3 {[%emt 0:00:49]} Kf7 {[%emt 0:04:
46]} 29. Ree1 Rdd6 {[%emt 0:04:58]} 30. Rec1 {[%emt 0:02:08]} Nc4 {[%emt 0:00:
53]} 31. Nxc4 {[%emt 0:00:29]} Rxc4 {[%emt 0:00:05]} 32. Rb4 Rdc6 {[%emt 0:02:
20]} 33. Rxc4 {[%emt 0:00:57]} Rxc4 {[%emt 0:00:20]} 34. Rb1 {[%emt 0:00:14]}
Rxa4 {[%emt 0:01:30]} 35. Rxb6 {[%emt 0:00:02]} a5 {[%emt 0:00:12]} 36. Ra6 {
[%emt 0:00:20]} e5 {[%emt 0:02:20]} 37. dxe5 {[%emt 0:01:29]} fxe5 {[%emt 0:00:
02]} 38. c4 {[%emt 0:00:37]} Rxc4 {[%emt 0:03:14]} 39. Rxa5 {[%emt 0:00:07]}
Rxh4 {[%emt 0:00:29]} 1/2-1/2

[Event "V Open LLucmajor"]
[Site "LLucmajor"]
[Date "2016.05.14"]
[Round "7"]
[White "Granda Zuniga, Julio E"]
[Black "Edouard, Romain"]
[Result "1-0"]
[ECO "A09"]
[WhiteElo "2686"]
[BlackElo "2641"]
[PlyCount "57"]
[EventDate "2016.??.??"]
[EventCountry "ESP"]
[TimeControl "5400+30"]
[WhiteClock "0:03:01"]
[BlackClock "0:34:42"]

1. Nf3 {[%emt 0:00:00]} d5 {[%emt 0:04:18]} 2. c4 {[%emt 0:00:00]} d4 {[%emt 0:
00:26]} 3. b4 {[%emt 0:00:09]} f6 {[%emt 0:00:22]} 4. Na3 {[%emt 0:00:20]} e5 {
[%emt 0:01:00]} 5. Nc2 {[%emt 0:00:06]} a5 {[%emt 0:11:52]} 6. b5 {[%emt 0:00:
20]} Nd7 {[%emt 0:00:03]} 7. d3 {[%emt 0:02:45]} Nc5 {[%emt 0:00:50]} 8. e3 {
[%emt 0:07:54]} dxe3 {[%emt 0:01:28]} 9. Bxe3 {[%emt 0:00:08]} Bd6 {[%emt 0:09:
03]} 10. Nd2 {[%emt 0:12:29]} Ne7 {[%emt 0:02:44]} 11. Ne4 {[%emt 0:00:39]} b6
{[%emt 0:03:43]} 12. Qh5+ {[%emt 0:03:21]} Kf8 {[%emt 0:03:07]} 13. Be2 {
[%emt 0:06:48]} Bf5 {[%emt 0:03:24]} 14. Bxc5 {[%emt 0:03:51]} Bxc5 {[%emt 0:
00:16]} 15. Nxc5 {[%emt 0:01:25]} bxc5 {[%emt 0:00:04]} 16. O-O {[%emt 0:00:33]
} Qd6 {[%emt 0:01:05]} 17. f4 {[%emt 0:30:50]} exf4 {[%emt 0:00:44]} 18. Qf3 {
[%emt 0:00:06]} Kf7 {[%emt 0:02:59]} 19. Qxf4 {[%emt 0:00:40]} Qxf4 {[%emt 0:
00:06]} 20. Rxf4 {[%emt 0:00:05]} Rhd8 {[%emt 0:01:49]} 21. Rd1 {[%emt 0:00:38]
} Rd6 {[%emt 0:01:29]} 22. Ne3 {[%emt 0:01:08]} Be6 {[%emt 0:00:51]} 23. d4 {
[%emt 0:02:50]} cxd4 {[%emt 0:07:04]} 24. Rfxd4 {[%emt 0:00:21]} Rad8 {[%emt 0:
00:15]} 25. Rxd6 {[%emt 0:03:00]} Rxd6 {[%emt 0:00:04]} 26. Kf2 {[%emt 0:07:20]
} f5 {[%emt 0:05:43]} 27. Rxd6 {[%emt 0:13:11]} cxd6 {[%emt 0:00:07]} 28. Nc2 {
[%emt 0:00:17]} f4 {[%emt 0:04:22]} 29. Nd4 {[%emt 0:00:15]} 1-0

[Event "V Open LLucmajor"]
[Site "LLucmajor"]
[Date "2016.05.14"]
[Round "7"]
[White "Kobo, Ori"]
[Black "Almagro Llamas, Pablo"]
[Result "0-1"]
[ECO "A10"]
[WhiteElo "2491"]
[BlackElo "2422"]
[PlyCount "76"]
[EventDate "2016.??.??"]
[EventCountry "ESP"]
[TimeControl "5400+30"]
[WhiteClock "0:00:47"]
[BlackClock "0:01:24"]

1. c4 {[%emt 0:00:00]} b6 {[%emt 0:03:08]} 2. Nc3 {[%emt 0:01:49]} Bb7 {
[%emt 0:00:55]} 3. e4 {[%emt 0:04:07]} e6 {[%emt 0:01:25]} 4. Nge2 {[%emt 0:00:
13]} Nf6 {[%emt 0:07:52]} 5. Ng3 {[%emt 0:10:56]} h5 {[%emt 0:03:43]} 6. h4 {
[%emt 0:03:30]} c5 {[%emt 0:16:39]} 7. d3 {[%emt 0:07:17]} Nc6 {[%emt 0:04:58]}
8. Bg5 {[%emt 0:01:41]} Be7 {[%emt 0:04:44]} 9. Qd2 {[%emt 0:03:20]} a6 {
[%emt 0:04:58]} 10. f4 {[%emt 0:06:01]} d6 {[%emt 0:01:52]} 11. f5 {[%emt 0:04:
04]} Qd7 {[%emt 0:11:34]} 12. Be2 {[%emt 0:10:54]} O-O-O {[%emt 0:03:03]} 13.
O-O-O {[%emt 0:02:42]} Nd4 {[%emt 0:02:58]} 14. Rdf1 {[%emt 0:03:45]} d5 {
[%emt 0:05:10]} 15. cxd5 {[%emt 0:03:13]} exd5 {[%emt 0:00:52]} 16. e5 {
[%emt 0:00:23]} Nxe2+ {[%emt 0:05:53]} 17. Qxe2 {[%emt 0:01:18]} d4 {[%emt 0:
03:29]} 18. exf6 {[%emt 0:10:57]} gxf6 {[%emt 0:00:06]} 19. Nce4 {[%emt 0:00:
39]} fxg5 {[%emt 0:00:07]} 20. f6 {[%emt 0:00:43]} Bd6 {[%emt 0:01:39]} 21.
Nxd6+ {[%emt 0:02:14]} Qxd6 {[%emt 0:00:08]} 22. Nf5 {[%emt 0:00:04]} Qc7 {
[%emt 0:01:02]} 23. hxg5 {[%emt 0:01:54]} c4 {[%emt 0:00:31]} 24. Kb1 {[%emt 0:
04:06]} Kb8 {[%emt 0:02:48]} 25. dxc4 {[%emt 0:08:19]} d3 {[%emt 0:00:39]} 26.
Qd2 {[%emt 0:00:06]} Qxc4 {[%emt 0:02:17]} 27. Rh4 {[%emt 0:00:19]} Qe6 {
[%emt 0:03:03]} 28. Nd4 {[%emt 0:08:07]} Qd5 {[%emt 0:04:20]} 29. Nf3 {[%emt 0:
00:48]} Rhe8 {[%emt 0:00:50]} 30. Rd4 {[%emt 0:00:36]} Qf5 {[%emt 0:00:30]} 31.
Rxd8+ {[%emt 0:00:32]} Rxd8 {[%emt 0:00:07]} 32. b3 {[%emt 0:00:26]} h4 {
[%emt 0:02:07]} 33. Rh1 {[%emt 0:00:53]} Re8 {[%emt 0:02:10]} 34. Nxh4 {
[%emt 0:00:28]} Qg4 {[%emt 0:00:18]} 35. Re1 {[%emt 0:00:33]} Rxe1+ {[%emt 0:
00:32]} 36. Qxe1 {[%emt 0:00:01]} Qe2 {[%emt 0:00:53]} 37. Qg3+ {[%emt 0:00:33]
} Ka7 {[%emt 0:00:08]} 38. Nf3 {[%emt 0:00:42]} Qc2+ {[%emt 0:00:08]} 0-1

[Event "V Open LLucmajor"]
[Site "LLucmajor"]
[Date "2016.05.14"]
[Round "7"]
[White "Kohlweyer, Bernd"]
[Black "Pap, Misa"]
[Result "1/2-1/2"]
[ECO "A57"]
[WhiteElo "2373"]
[BlackElo "2484"]
[PlyCount "71"]
[EventDate "2016.??.??"]
[EventCountry "ESP"]
[TimeControl "5400+30"]
[WhiteClock "0:17:23"]
[BlackClock "0:14:04"]

1. d4 {[%emt 0:00:00]} Nf6 {[%emt 0:00:00]} 2. c4 {[%emt 0:00:00]} c5 {[%emt 0:
00:00]} 3. d5 {[%emt 0:00:00]} b5 {[%emt 0:00:01]} 4. Nf3 {[%emt 0:00:09]} b4 {
[%emt 0:00:07]} 5. a3 {[%emt 0:00:31]} g6 {[%emt 0:00:14]} 6. Nbd2 {[%emt 0:01:
16]} Bg7 {[%emt 0:00:15]} 7. e4 {[%emt 0:00:06]} d6 {[%emt 0:00:03]} 8. Bd3 {
[%emt 0:05:32]} O-O {[%emt 0:00:22]} 9. O-O {[%emt 0:00:08]} bxa3 {[%emt 0:07:
52]} 10. Rxa3 {[%emt 0:00:17]} Nfd7 {[%emt 0:01:56]} 11. Nb1 {[%emt 0:04:53]}
Na6 {[%emt 0:00:10]} 12. Nc3 {[%emt 0:01:27]} Nb4 {[%emt 0:00:05]} 13. h3 {
[%emt 0:14:34]} a5 {[%emt 0:06:10]} 14. Re1 {[%emt 0:08:50]} Ba6 {[%emt 0:00:
34]} 15. Na4 {[%emt 0:06:42]} e6 {[%emt 0:07:18]} 16. Bf1 {[%emt 0:01:39]} Ne5
{[%emt 0:04:57]} 17. Nxe5 {[%emt 0:06:23]} Bxe5 {[%emt 0:00:27]} 18. Be3 {
[%emt 0:00:55]} exd5 {[%emt 0:06:33]} 19. cxd5 {[%emt 0:04:43]} Bxf1 {[%emt 0:
04:04]} 20. Rxf1 {[%emt 0:00:05]} f5 {[%emt 0:05:44]} 21. f4 {[%emt 0:02:31]}
Bg7 {[%emt 0:00:06]} 22. e5 {[%emt 0:00:06]} dxe5 {[%emt 0:00:36]} 23. fxe5 {
[%emt 0:04:39]} Qxd5 {[%emt 0:24:44]} 24. Bxc5 {[%emt 0:04:08]} Rfe8 {[%emt 0:
01:56]} 25. Qxd5+ {[%emt 0:00:55]} Nxd5 {[%emt 0:00:06]} 26. Rd1 {[%emt 0:00:
20]} Nc7 {[%emt 0:02:21]} 27. Nb6 {[%emt 0:00:55]} Ra6 {[%emt 0:00:28]} 28. Nc4
{[%emt 0:01:42]} Bxe5 {[%emt 0:11:57]} 29. Nxe5 {[%emt 0:10:00]} Rxe5 {[%emt 0:
00:06]} 30. Rd8+ {[%emt 0:00:16]} Re8 {[%emt 0:00:05]} 31. Rxe8+ {[%emt 0:00:
24]} Nxe8 {[%emt 0:00:04]} 32. Ra4 {[%emt 0:01:48]} Nc7 {[%emt 0:01:12]} 33.
Bf2 {[%emt 0:00:38]} Nd5 {[%emt 0:02:11]} 34. Bc5 {[%emt 0:02:17]} Nc7 {
[%emt 0:00:39]} 35. Bf2 {[%emt 0:00:07]} Nd5 {[%emt 0:00:03]} 36. Bc5 {[%emt 0:
01:41]} 1/2-1/2

[Event "V Open LLucmajor"]
[Site "LLucmajor"]
[Date "2016.05.14"]
[Round "7"]
[White "Levin, Felix"]
[Black "Naumkin, Igor"]
[Result "1-0"]
[ECO "E06"]
[WhiteElo "2511"]
[BlackElo "2431"]
[PlyCount "75"]
[EventDate "2016.??.??"]
[EventCountry "ESP"]
[TimeControl "5400+30"]
[WhiteClock "0:27:04"]
[BlackClock "0:42:05"]

1. d4 {[%emt 0:00:44]} Nf6 {[%emt 0:09:54]} 2. c4 {[%emt 0:00:50]} e6 {[%emt 0:
00:19]} 3. g3 {[%emt 0:00:40]} d5 {[%emt 0:00:36]} 4. Nf3 {[%emt 0:00:28]} Be7
{[%emt 0:00:43]} 5. Bg2 {[%emt 0:00:16]} O-O {[%emt 0:00:12]} 6. O-O {[%emt 0:
00:32]} dxc4 {[%emt 0:00:30]} 7. Ne5 {[%emt 0:02:07]} Nc6 {[%emt 0:06:19]} 8.
Bxc6 {[%emt 0:00:29]} bxc6 {[%emt 0:00:14]} 9. Nxc6 {[%emt 0:00:12]} Qe8 {
[%emt 0:00:16]} 10. Nxe7+ {[%emt 0:00:09]} Qxe7 {[%emt 0:00:05]} 11. Qc2 {
[%emt 0:01:36]} e5 {[%emt 0:05:12]} 12. Rd1 {[%emt 0:01:33]} exd4 {[%emt 0:01:
24]} 13. Rxd4 {[%emt 0:00:08]} Be6 {[%emt 0:00:21]} 14. Nc3 {[%emt 0:01:00]} h6
{[%emt 0:01:07]} 15. Be3 {[%emt 0:08:49]} a6 {[%emt 0:05:07]} 16. Rad1 {
[%emt 0:02:07]} Rfd8 {[%emt 0:02:00]} 17. f3 {[%emt 0:20:52]} Rxd4 {[%emt 0:04:
12]} 18. Bxd4 {[%emt 0:00:11]} Rd8 {[%emt 0:02:15]} 19. e4 {[%emt 0:05:53]} c5
{[%emt 0:08:13]} 20. Be3 {[%emt 0:01:37]} Rxd1+ {[%emt 0:00:37]} 21. Qxd1 {
[%emt 0:00:15]} Qb7 {[%emt 0:00:36]} 22. Qd8+ {[%emt 0:02:07]} Kh7 {[%emt 0:00:
22]} 23. Qd2 {[%emt 0:00:07]} Nd7 {[%emt 0:02:51]} 24. f4 {[%emt 0:11:52]} f6 {
[%emt 0:02:06]} 25. Kf2 {[%emt 0:00:46]} Kg8 {[%emt 0:01:06]} 26. Ke1 {[%emt 0:
00:51]} Qc6 {[%emt 0:00:53]} 27. f5 {[%emt 0:01:51]} Bf7 {[%emt 0:00:21]} 28.
Bf4 {[%emt 0:00:06]} Kf8 {[%emt 0:01:12]} 29. Qd6+ {[%emt 0:00:58]} Qxd6 {
[%emt 0:00:06]} 30. Bxd6+ {[%emt 0:00:04]} Ke8 {[%emt 0:00:08]} 31. Kd2 {
[%emt 0:01:05]} g6 {[%emt 0:00:39]} 32. g4 {[%emt 0:04:13]} gxf5 {[%emt 0:02:
19]} 33. gxf5 {[%emt 0:02:26]} Bh5 {[%emt 0:01:52]} 34. Nd5 {[%emt 0:01:05]} a5
{[%emt 0:00:47]} 35. a4 {[%emt 0:02:01]} Kf7 {[%emt 0:00:56]} 36. Bc7 {[%emt 0:
00:25]} Bf3 {[%emt 0:00:21]} 37. Ke3 {[%emt 0:01:25]} Bd1 {[%emt 0:00:14]} 38.
Nc3 {[%emt 0:00:06]} 1-0

[Event "V Open LLucmajor"]
[Site "LLucmajor"]
[Date "2016.05.14"]
[Round "7"]
[White "Manik, Mikulas"]
[Black "Narciso Dublan, Marc"]
[Result "1/2-1/2"]
[ECO "B09"]
[WhiteElo "2428"]
[BlackElo "2540"]
[PlyCount "37"]
[EventDate "2016.??.??"]
[EventCountry "ESP"]
[TimeControl "5400+30"]
[WhiteClock "0:40:21"]
[BlackClock "0:43:57"]

1. e4 {[%emt 0:00:00]} d6 {[%emt 0:00:00]} 2. d4 {[%emt 0:00:00]} Nf6 {[%emt 0:
00:00]} 3. Nc3 {[%emt 0:00:00]} g6 {[%emt 0:00:06]} 4. f4 {[%emt 0:00:19]} Bg7
{[%emt 0:00:13]} 5. Nf3 {[%emt 0:00:06]} O-O {[%emt 0:00:19]} 6. Bd3 {[%emt 0:
01:06]} Nc6 {[%emt 0:00:21]} 7. e5 {[%emt 0:01:49]} dxe5 {[%emt 0:00:16]} 8.
fxe5 {[%emt 0:00:45]} Nh5 {[%emt 0:00:27]} 9. Be3 {[%emt 0:02:51]} Bg4 {
[%emt 0:00:26]} 10. Be2 {[%emt 0:04:15]} f6 {[%emt 0:00:14]} 11. exf6 {[%emt 0:
01:40]} Nxf6 {[%emt 0:00:18]} 12. O-O {[%emt 0:09:38]} Qd7 {[%emt 0:05:46]} 13.
h3 {[%emt 0:15:17]} Bxf3 {[%emt 0:01:28]} 14. Bxf3 {[%emt 0:00:29]} Rad8 {
[%emt 0:00:25]} 15. Re1 {[%emt 0:03:28]} Rf7 {[%emt 0:17:51]} 16. Bf2 {[%emt 0:
07:27]} e6 {[%emt 0:08:39]} 17. Kh1 {[%emt 0:05:22]} Nxd4 {[%emt 0:18:02]} 18.
Bxd4 {[%emt 0:04:10]} Qxd4 {[%emt 0:00:12]} 19. Qxd4 {[%emt 0:00:27]} 1/2-1/2